bitfinex/quotes_SOLUSD_20241113
["timestamp","ask_amount","ask_price","bid_price","bid_amount"]
[1731465611470,0.4888221,205.83,205.75,15.9179]
[1731465611471,0.4888221,205.83,205.76,43.902374]
[1731465611667,0.4888221,205.83,205.82,36.85262428]
[1731465611964,0.4888221,205.83,205.8,36.85262428]
[1731465612267,0.4888221,205.83,205.75,15.9179]
[1731465612468,0.4888221,205.83,205.76,36.85262428]
[1731465612981,0.4888221,205.83,205.78,36.85262428]
[1731465613179,0.4888221,205.83,205.82,36.85262428]
[1731465613484,0.4888221,205.83,205.81,36.85262428]
[1731465613873,0.4888221,205.83,205.8,36.85262428]
[1731465614270,0.4888221,205.83,205.79,43.776884]
[1731465614581,36.85262428,205.94,205.82,36.85262428]
[1731465614774,36.85262428,205.94,205.81,0.12549]
[1731465614968,36.85262428,205.94,205.85,36.85262428]
[1731465615784,36.85262428,205.94,205.87,36.85262428]
[1731465616083,41.70852428,205.94,205.87,36.85262428]
[1731465616279,36.85262428,205.96,205.89,36.85262428]
[1731465616585,36.85262428,205.94,205.85,36.85262428]
[1731465616789,36.85262428,205.93,205.85,36.85262428]
[1731465617159,36.85262428,205.94,205.81,0.12549]
[1731465617379,36.85262428,205.93,205.86,36.85262428]
[1731465617573,36.85262428,205.94,205.86,36.85262428]
[1731465617776,4.8556,205.95,205.86,36.85262428]
[1731465617777,36.85262428,205.93,205.86,36.85262428]
[1731465618085,36.85262428,205.89,205.81,36.85262428]
[1731465618787,22.62886821,205.88,205.81,22.62886821]
[1731465618964,22.62886821,205.88,205.75,15.9179]
[1731465618965,22.62886821,205.83,205.75,15.9179]
[1731465619298,22.62886821,205.78,205.71,22.62886821]
[1731465619466,12.2442,205.86,205.68,15.9179]
[1731465619667,48.634784,205.85,205.69,0.12549]
[1731465619968,22.62886821,205.82,205.74,22.62886821]
[1731465620174,22.62886821,205.78,205.7,22.62886821]
[1731465620373,22.62886821,205.76,205.69,22.62886821]
[1731465620572,22.62886821,205.76,205.68,15.9179]
[1731465620770,36.83655168,205.71,205.63,36.83655168]
[1731465620986,36.83655168,205.71,205.61,15.9179]
[1731465621187,36.83655168,205.72,205.63,36.83655168]
[1731465621493,36.83655168,205.7,205.63,36.83655168]
[1731465621691,36.83655168,205.68,205.61,52.75445168]
[1731465622368,36.83655168,205.72,205.63,36.83655168]
[1731465622689,36.83655168,205.72,205.61,15.9179]
[1731465622690,36.83655168,205.72,205.65,36.83655168]
[1731465624388,41.69675168,205.76,205.67,36.83655168]
[1731465626298,0.1,205.84,205.62,0.12549]
[1731465626473,36.83655168,205.84,205.77,36.83655168]
[1731465626670,36.83655168,205.86,205.77,36.83655168]
[1731465626977,36.83655168,205.86,205.79,36.83655168]
[1731465627492,36.83655168,205.88,205.79,36.83655168]
[1731465627796,36.83655168,205.88,205.81,36.83655168]
[1731465628273,36.83655168,205.9,205.81,36.83655168]
[1731465628477,36.83655168,205.9,205.83,36.83655168]
[1731465628685,36.83655168,205.88,205.75,23.776884]
[1731465628894,36.83655168,205.86,205.78,36.83655168]
[1731465629998,36.83655168,205.82,205.74,364.22695168]
[1731465630291,36.83655168,205.78,205.7,36.83655168]
[1731465631293,36.83655168,205.8,205.72,36.83655168]
[1731465631589,36.83655168,205.8,205.74,36.83655168]
[1731465631773,36.83655168,205.82,205.74,36.83655168]
[1731465631979,36.83655168,205.8,205.72,36.83655168]
[1731465632306,36.83655168,205.82,205.74,36.83655168]
[1731465633095,0.2,205.96,205.71,24.102374]
[1731465633274,36.83655168,205.91,205.84,36.83655168]
[1731465633476,36.83655168,205.91,205.82,36.83655168]
[1731465633689,36.83655168,205.89,205.82,36.83655168]
[1731465634004,41.69265168,205.93,205.75,0.1]
[1731465634293,36.83655168,205.91,205.84,36.83655168]
[1731465634493,24.2697,206.02,205.9,36.83655168]
[1731465634494,4.8538,206.02,205.9,36.83655168]
[1731465634804,36.83655168,206.01,205.93,36.83655168]
[1731465635007,0.12549,205.98,205.89,36.83655168]
[1731465635291,36.83655168,205.97,205.89,36.83655168]
[1731465635784,41.69155168,205.97,205.88,16.1774]
[1731465636085,41.69155168,205.97,205.89,36.83655168]
[1731465636891,41.69155168,205.97,205.83,6.0321]
[1731465636892,36.83655168,205.93,205.85,36.83655168]
[1731465637188,36.83655168,205.91,205.83,36.83655168]
[1731465637410,36.83655168,205.95,205.87,36.83655168]
[1731465637577,36.83655168,205.97,205.89,36.83655168]
[1731465637889,20.0,205.98,205.83,23.902374]
[1731465638099,41.69115168,205.99,205.9,36.83655168]
[1731465638294,36.83655168,205.97,205.9,36.83655168]
[1731465638598,36.83655168,205.95,205.87,36.83655168]
[1731465638780,36.83655168,205.97,205.89,36.83655168]
[1731465639087,36.83655168,205.93,205.82,16.3781]
[1731465639389,36.83655168,205.91,205.84,36.83655168]
[1731465639600,36.83655168,205.93,205.84,36.83655168]
[1731465639976,24.8562,205.92,205.84,36.83655168]
[1731465640196,20.0,205.92,205.86,36.83655168]
[1731465640494,36.83655168,205.99,205.9,36.83655168]
[1731465641495,36.83655168,205.97,205.88,36.83655168]
[1731465641677,4.8553,205.96,205.88,36.83655168]
[1731465641890,36.83655168,205.97,205.88,36.83655168]
[1731465642586,20.0,205.94,205.88,36.83655168]
[1731465642784,36.83655168,205.97,205.88,36.83655168]
[1731465642985,36.83655168,205.99,205.92,36.83655168]
[1731465643886,41.69115168,205.99,205.92,36.83655168]
[1731465644591,20.0,205.98,205.9,36.83655168]
[1731465644795,20.0,205.96,205.88,36.83655168]
[1731465644987,41.69115168,205.99,205.92,36.83655168]
[1731465645178,20.0,205.98,205.92,36.83655168]
[1731465646089,36.83655168,205.99,205.92,36.83655168]
[1731465646687,41.69125168,205.99,205.92,36.83655168]
[1731465646982,22.60730115,205.97,205.88,22.60730115]
[1731465647690,27.46250115,205.97,205.88,22.60730115]
[1731465648206,27.46250115,205.97,205.9,22.60730115]
[1731465648708,22.60730115,205.95,205.88,22.60730115]
[1731465648995,22.60730115,205.93,205.86,22.60730115]
[1731465649201,22.60730115,205.93,205.85,22.60730115]
[1731465649605,27.46340115,205.93,205.85,22.60730115]
[1731465649900,22.60730115,205.91,205.82,38.98540115]
[1731465650107,20.0,205.86,205.8,22.60730115]
[1731465650781,20.0,205.86,205.76,15.8608]
[1731465651100,20.0,205.9,205.82,22.60730115]
[1731465651398,27.46340115,205.93,205.84,22.60730115]
[1731465651605,20.0,205.92,205.84,22.60730115]
[1731465651802,4.8564,205.91,205.84,22.60730115]
[1731465652003,22.60730115,205.89,205.8,22.60730115]
[1731465652303,22.60730115,205.86,205.76,15.8608]
[1731465652606,22.60730115,205.86,205.78,22.60730115]
[1731465653108,20.0,205.83,205.76,15.8608]
[1731465653298,22.60730115,205.8,205.71,22.60730115]
[1731465653500,22.60730115,205.78,205.71,22.60730115]
[1731465653998,27.46690115,205.78,205.71,22.60730115]
[1731465654204,23.776884,205.83,205.73,22.60730115]
[1731465654390,22.60730115,205.85,205.77,22.60730115]
[1731465654593,22.60730115,205.83,205.75,22.60730115]
[1731465655105,20.0,205.84,205.77,22.60730115]
[1731465655500,27.46480115,205.87,205.79,22.60730115]
[1731465655694,20.0,205.86,205.79,22.60730115]
[1731465655899,24.8577,205.86,205.79,22.60730115]
[1731465656778,61.63883251,205.86,205.78,36.78113251]
[1731465657199,61.63883251,205.86,205.8,36.78113251]
[1731465657200,20.0,205.86,205.8,36.78113251]
[1731465657379,24.8574,205.87,205.8,36.78113251]
[1731465658303,20.0,205.85,205.78,36.78113251]
[1731465659289,4.8581,205.84,205.78,36.78113251]
[1731465659704,20.0,205.85,205.78,36.78113251]
[1731465660005,0.12549,205.86,205.8,36.78113251]
[1731465660306,20.0,205.85,205.78,36.78113251]
[1731465661310,24.8581,205.85,205.78,36.78113251]
[1731465661512,20.0,205.85,205.78,36.78113251]
[1731465661690,0.12549,205.86,205.8,36.78113251]
[1731465661887,6.2109,205.9,205.73,0.12549]
[1731465662212,4.8569,205.9,205.84,36.78113251]
[1731465662415,36.78113251,205.85,205.72,23.776884]
[1731465662622,36.78113251,205.79,205.72,36.78113251]
[1731465662787,36.78113251,205.77,205.7,15.8608]
[1731465663103,36.78113251,205.75,205.66,19.436366]
[1731465663421,36.78113251,205.71,205.64,53.17493251]
[1731465663600,20.0,205.76,205.7,36.78113251]
[1731465663926,20.0,205.78,205.72,36.78113251]
[1731465664090,43.15593251,205.83,205.76,36.78113251]
[1731465664290,48.01443251,205.83,205.76,36.78113251]
[1731465665111,48.01443251,205.83,205.65,43.902374]
[1731465665112,0.12549,205.82,205.65,43.902374]
[1731465665313,20.0,205.78,205.7,36.78113251]
[1731465665499,36.78113251,205.77,205.68,36.78113251]
[1731465665693,20.0,205.74,205.68,36.78113251]
[1731465665894,20.0,205.74,205.66,36.78113251]
[1731465666111,20.0,205.74,205.68,36.78113251]
[1731465666305,20.0,205.74,205.64,16.3938]
[1731465666306,20.0,205.74,205.66,36.78113251]
[1731465666616,20.0,205.72,205.64,53.17493251]
[1731465666815,20.0,205.74,205.68,36.78113251]
[1731465667111,20.0,205.78,205.72,36.78113251]
[1731465667292,36.78113251,205.81,205.74,36.78113251]
[1731465667498,36.78113251,205.79,205.72,36.78113251]
[1731465667897,65.54220651,205.82,205.74,36.78113251]
[1731465668100,4.8587,205.82,205.76,36.78113251]
[1731465668421,6.3748,205.83,205.68,0.1]
[1731465668607,36.78113251,205.86,205.78,36.78113251]
[1731465668809,0.12549,205.85,205.78,36.78113251]
[1731465669109,36.78113251,205.88,205.72,20.0]
[1731465669409,4.8579,205.85,205.77,36.78113251]
[1731465670015,0.12549,205.88,205.72,20.0]
[1731465670016,4.8574,205.87,205.81,36.78113251]
[1731465670316,4.8568,205.9,205.83,36.78113251]
[1731465670488,43.05693251,205.94,205.87,36.78113251]
[1731465670693,4.8551,205.97,205.81,0.1]
[1731465670915,4.8551,205.97,205.9,36.78113251]
[1731465671095,36.78113251,205.98,205.9,36.78113251]
[1731465671296,41.63613251,205.98,205.9,36.78113251]
[1731465671501,0.12549,205.97,205.9,36.78113251]
[1731465671799,0.12549,205.97,205.95,36.78113251]
[1731465673412,0.12549,205.97,205.9,312.0]
[1731465673615,0.12549,205.97,205.93,36.78113251]
[1731465674000,0.12549,205.97,205.89,15.0123]
[1731465674215,0.12549,205.97,205.95,36.78113251]
[1731465674603,0.12549,205.97,205.9,43.902374]
[1731465674802,0.12549,205.97,205.96,36.78113251]
[1731465675410,0.12549,205.97,205.96,60.68350651]
[1731465675722,0.12549,205.97,205.96,80.68350651]
[1731465675929,0.4888221,206.03,205.96,80.78350651]
[1731465676219,0.4888221,206.03,206.02,36.78113251]
[1731465676798,0.4888221,206.03,206.02,36.90662251]
[1731465677195,0.4888221,206.03,206.02,73.00592251]
[1731465677410,36.78113251,206.19,206.03,43.902374]
[1731465677606,36.78113251,206.21,206.14,36.78113251]
[1731465677917,23.3749,206.23,206.02,16.1993]
[1731465678118,36.78113251,206.21,206.14,36.78113251]
[1731465678325,43.18463251,206.23,206.14,36.78113251]
[1731465678618,36.78113251,206.23,206.16,36.78113251]
[1731465679118,36.78113251,206.21,206.14,36.78113251]
[1731465679315,36.78113251,206.23,206.16,36.78113251]
[1731465680524,36.78113251,206.23,206.14,36.78113251]
[1731465681019,36.78113251,206.23,206.16,36.78113251]
[1731465681221,36.78113251,206.25,206.16,36.78113251]
[1731465681426,36.78113251,206.25,206.18,36.78113251]
[1731465682517,20.4888221,206.24,206.16,36.78113251]
[1731465682825,36.78113251,206.23,206.16,36.78113251]
[1731465684901,25.3376221,206.24,206.16,36.78113251]
[1731465684902,47.88954943,206.24,206.16,22.55192733]
[1731465686312,47.88954943,206.24,206.15,19.393385]
[1731465686623,47.88954943,206.24,206.15,41.94531233]
[1731465688528,22.55192733,206.22,206.15,41.94531233]
[1731465688819,22.55192733,206.22,206.08,312.12549]
[1731465689005,22.55192733,206.2,206.13,22.55192733]
[1731465689206,22.55192733,206.2,206.14,19.395165]
[1731465690018,22.55192733,206.2,206.13,22.55192733]
[1731465690499,22.55192733,206.2,206.13,41.94730333]
[1731465690722,47.88954943,206.24,206.15,22.55192733]
[1731465690915,47.88954943,206.24,206.17,22.55192733]
[1731465691305,0.4888221,206.24,206.19,22.55192733]
[1731465691712,0.4888221,206.24,206.21,22.55192733]
[1731465692011,0.4888221,206.24,206.23,22.55192733]
[1731465692316,0.4888221,206.24,206.21,22.55192733]
[1731465692518,0.4888221,206.24,206.15,20.12549]
[1731465692710,23.04074943,206.24,206.17,22.55192733]
[1731465693228,0.4888221,206.24,206.17,22.55192733]
[1731465693522,0.4888221,206.24,206.23,22.55192733]
[1731465693729,0.4888221,206.24,206.21,22.55192733]
[1731465693916,0.4888221,206.24,206.23,22.55192733]
[1731465694722,0.4888221,206.24,206.21,22.55192733]
[1731465695125,0.4888221,206.24,206.17,20.12549]
[1731465695420,0.4888221,206.24,206.23,22.55192733]
[1731465696909,0.4888221,206.24,206.23,42.67741733]
[1731465697109,22.55192733,206.35,206.24,22.07329]
[1731465697433,22.55192733,206.35,206.28,22.55192733]
[1731465698624,22.55192733,206.35,206.28,334.55192733]
[1731465699003,22.55192733,206.35,206.28,22.55192733]
[1731465699203,22.55192733,206.37,206.28,22.55192733]
[1731465699411,22.55192733,206.35,206.28,22.55192733]
[1731465699616,22.55192733,206.33,206.24,21.9478]
[1731465699808,22.55192733,206.33,206.24,44.49972733]
[1731465700013,22.55192733,206.3,206.24,15.6675]
[1731465700217,22.55192733,206.31,206.24,38.21942733]
[1731465700824,22.55192733,206.33,206.24,38.21942733]
[1731465701029,22.55192733,206.35,206.28,22.55192733]
[1731465701223,22.55192733,206.31,206.24,38.21942733]
[1731465701409,22.55192733,206.29,206.24,15.6675]
[1731465701618,0.12549,206.34,206.18,22.7994]
[1731465701619,22.55192733,206.26,206.18,22.7994]
[1731465701959,22.55192733,206.26,206.18,45.35132733]
[1731465702141,22.55192733,206.25,206.18,45.35132733]
[1731465702341,22.55192733,206.22,206.18,16.4521]
[1731465702520,22.55192733,206.2,206.13,41.94730333]
[1731465702825,22.55192733,206.19,206.13,19.395376]
[1731465703024,22.55192733,206.2,206.13,19.395376]
[1731465703228,22.55192733,206.24,206.17,22.55192733]
[1731465703419,27.40062733,206.24,206.16,22.55192733]
[1731465703621,22.55192733,206.22,206.15,22.55192733]
[1731465703827,4.8487,206.24,206.13,19.395376]
[1731465703828,22.55192733,206.17,206.13,19.395376]
[1731465704031,22.55192733,206.14,206.06,44.79612733]
[1731465704207,22.55192733,206.16,206.08,22.55192733]
[1731465705329,22.55192733,206.16,206.08,312.0]
[1731465705534,22.55192733,206.16,206.09,22.55192733]
[1731465705734,22.55192733,206.14,206.07,41.94730333]
[1731465705926,22.55192733,206.16,206.09,22.55192733]
[1731465706118,24.36393188,206.28,206.11,22.55192733]
[1731465706119,22.55192733,206.18,206.11,22.55192733]
[1731465706316,22.55192733,206.16,206.09,22.55192733]
[1731465706941,22.55192733,206.16,206.07,41.94730333]
[1731465707135,22.55192733,206.2,206.07,19.395376]
[1731465707136,22.55192733,206.14,206.07,19.395376]
[1731465707632,22.55192733,206.1,206.07,19.395376]
[1731465708026,22.55192733,206.12,206.07,19.395376]
[1731465708233,22.55192733,206.12,206.05,22.55192733]
[1731465708433,22.55192733,206.14,206.07,22.55192733]
[1731465708734,22.55192733,206.16,206.07,22.55192733]
[1731465708916,22.55192733,206.1,206.07,19.400332]
[1731465709222,22.55192733,206.1,206.01,38.75492733]
[1731465709816,22.55192733,206.1,206.03,22.55192733]
[1731465710023,22.55192733,206.14,206.07,22.55192733]
[1731465710514,22.55192733,206.12,206.05,22.55192733]
[1731465710709,22.55192733,206.14,206.07,22.55192733]
[1731465711420,22.55192733,206.14,206.05,22.55192733]
[1731465711813,22.55192733,206.14,206.07,22.55192733]
[1731465712126,22.55192733,206.14,206.05,22.55192733]
[1731465712514,20.0,206.13,206.05,22.55192733]
[1731465713215,22.55192733,206.14,206.05,22.55192733]
[1731465714138,22.55192733,206.12,206.03,22.55192733]
[1731465715616,4.8516,206.12,206.03,22.55192733]
[1731465715835,22.55192733,206.1,206.01,38.75492733]
[1731465716040,22.55192733,206.06,205.97,41.95597333]
[1731465716347,22.55192733,206.04,205.95,44.71662733]
[1731465716837,22.55192733,206.0,205.95,15.9611]
[1731465717541,22.55192733,205.98,205.91,22.55192733]
[1731465717835,22.55192733,205.98,205.89,22.55192733]
[1731465718041,16.9836,206.08,205.87,15.9611]
[1731465718042,22.55192733,205.94,205.87,38.51302733]
[1731465718422,22.55192733,205.92,205.87,15.9611]
[1731465718623,22.55192733,205.9,205.81,15.9611]
[1731465718818,22.55192733,205.88,205.81,15.9611]
[1731465719328,22.55192733,205.9,205.82,22.55192733]
[1731465719622,6.0453,205.96,205.86,22.55192733]
[1731465719623,20.0,205.93,205.86,22.55192733]
[1731465719818,22.55192733,205.92,205.84,22.55192733]
[1731465720027,20.0,205.93,205.81,15.9611]
[1731465720028,22.55192733,205.88,205.81,15.9611]
[1731465721835,22.55192733,205.88,205.8,22.55192733]
[1731465722353,4.8542,206.01,205.87,22.55192733]
[1731465722647,22.55192733,205.94,205.87,22.55192733]
[1731465723345,22.55192733,205.94,205.85,22.55192733]
[1731465723554,6.1822,206.02,205.9,22.55192733]
[1731465723726,22.55192733,205.95,205.88,22.55192733]
[1731465723920,22.55192733,205.93,205.86,22.55192733]
[1731465724339,22.55192733,205.93,205.84,22.55192733]
[1731465724741,22.55192733,205.91,205.84,22.55192733]
[1731465727143,22.55192733,205.93,205.86,22.55192733]
[1731465727444,22.55192733,205.93,205.8,22.55192733]
[1731465727445,22.55192733,205.95,205.88,22.55192733]
[1731465727628,22.55192733,205.93,205.86,22.55192733]
[1731465727942,22.55192733,205.93,205.84,22.55192733]
[1731465728155,22.55192733,205.94,205.87,22.55192733]
[1731465729240,22.55192733,205.96,205.87,22.55192733]
[1731465729443,22.55192733,205.96,205.89,22.55192733]
[1731465729745,22.55192733,205.9,205.81,22.55192733]
[1731465730052,22.55192733,205.83,205.73,22.55192733]
[1731465730247,22.55192733,205.79,205.72,0.4888221]
[1731465730454,22.55192733,205.77,205.72,0.4888221]
[1731465730745,22.55192733,205.75,205.72,0.4888221]
[1731465731827,26.1893,205.89,205.74,22.55192733]
[1731465732130,22.55192733,205.86,205.78,22.55192733]
[1731465732438,22.55192733,205.9,205.82,22.55192733]
[1731465732948,22.55192733,205.91,205.84,22.55192733]
[1731465733156,22.55192733,205.94,205.87,22.55192733]
[1731465733347,22.55192733,205.94,205.85,22.55192733]
[1731465734450,22.55192733,205.92,205.85,22.55192733]
[1731465734655,22.55192733,205.9,205.83,22.55192733]
[1731465735232,22.55192733,205.86,205.76,15.0462]
[1731465735450,47.40872733,205.9,205.81,22.55192733]
[1731465735833,22.55192733,205.88,205.81,22.55192733]
[1731465736153,42.55192733,205.9,205.83,22.55192733]
[1731465736345,22.55192733,205.92,205.85,22.55192733]
[1731465736657,27.40782733,205.94,205.85,22.55192733]
[1731465736849,22.55192733,205.92,205.85,22.55192733]
[1731465737154,22.55192733,205.92,205.83,22.55192733]
[1731465737331,22.55192733,205.9,205.83,22.55192733]
[1731465737534,22.55192733,205.9,205.81,22.55192733]
[1731465738032,22.55192733,205.88,205.79,22.55192733]
[1731465738231,22.55192733,205.9,205.82,22.55192733]
[1731465738447,20.0,205.89,205.84,22.55192733]
[1731465738648,27.40832733,205.92,205.84,22.55192733]
[1731465738850,20.0,205.91,205.84,22.55192733]
[1731465739153,22.55192733,205.92,205.84,22.55192733]
[1731465739351,22.55192733,205.94,205.86,22.55192733]
[1731465739749,22.55192733,205.9,205.82,22.55192733]
[1731465740239,22.55192733,205.9,205.84,22.55192733]
[1731465741156,24.8565,205.91,205.84,22.55192733]
[1731465741352,22.55192733,205.9,205.82,22.55192733]
[1731465741654,22.55192733,205.88,205.8,22.55192733]
[1731465741852,22.55192733,205.88,205.82,22.55192733]
[1731465742039,22.55192733,205.9,205.82,22.55192733]
[1731465742454,20.0,205.89,205.82,22.55192733]
[1731465742958,20.0,205.89,205.76,15.0462]
[1731465742959,22.55192733,205.83,205.76,15.0462]
[1731465743265,22.55192733,205.79,205.72,0.4888221]
[1731465743560,20.0,205.8,205.73,22.55192733]
[1731465744051,22.55192733,205.82,205.74,22.55192733]
[1731465744259,27.41062733,205.82,205.74,22.55192733]
[1731465745059,22.55192733,205.88,205.8,22.55192733]
[1731465745557,22.55192733,205.84,205.76,22.55192733]
[1731465745739,22.55192733,205.82,205.74,22.55192733]
[1731465745938,22.65192733,205.9,205.72,0.4888221]
[1731465745939,22.55192733,205.84,205.76,22.55192733]
[1731465746159,27.41002733,205.84,205.76,22.55192733]
[1731465746660,20.0,205.83,205.76,22.55192733]
[1731465747041,22.55192733,205.86,205.78,22.55192733]
[1731465747346,20.0,205.87,205.8,22.55192733]
[1731465747551,22.55192733,205.82,205.74,22.55192733]
[1731465747751,22.55192733,205.82,205.76,22.55192733]
[1731465747945,20.0,205.85,205.78,22.55192733]
[1731465748138,22.55192733,205.88,205.8,22.55192733]
[1731465748338,22.55192733,205.88,205.72,0.5888221]
[1731465748339,22.55192733,205.88,205.82,22.55192733]
[1731465748741,27.40912733,205.88,205.82,22.55192733]
[1731465748964,22.55192733,205.9,205.82,22.55192733]
[1731465749665,22.55192733,205.88,205.8,22.55192733]
[1731465750965,23.776884,205.89,205.82,22.55192733]
[1731465751142,28.633784,205.89,205.82,22.55192733]
[1731465751470,23.776884,205.89,205.82,22.55192733]
[1731465752543,28.633884,205.89,205.82,22.55192733]
[1731465753560,22.55192733,205.9,205.82,22.55192733]
[1731465753749,6.1935,205.95,205.86,22.55192733]
[1731465753750,22.55192733,205.94,205.86,22.55192733]
[1731465753959,22.55192733,205.96,205.88,22.55192733]
[1731465754258,4.8555,205.95,205.88,22.55192733]
[1731465754484,22.55192733,205.94,205.86,22.55192733]
[1731465754663,22.55192733,205.92,205.84,22.55192733]
[1731465754961,22.55192733,205.88,205.8,22.55192733]
[1731465755663,20.0,205.87,205.8,22.55192733]
[1731465757044,22.55192733,205.92,205.84,22.55192733]
[1731465757249,22.55192733,205.95,205.87,22.55192733]
[1731465757964,27.40692733,205.97,205.9,22.55192733]
[1731465758665,22.55192733,205.99,205.92,22.55192733]
[1731465758960,22.55192733,205.99,205.81,0.1]
[1731465758961,22.55192733,206.05,205.98,22.55192733]
[1731465759765,27.40522733,206.05,205.98,22.55192733]
[1731465760669,20.0,206.04,205.98,22.55192733]
[1731465761061,22.55192733,206.01,205.92,22.55192733]
[1731465761250,4.8515,206.12,206.0,22.55192733]
[1731465761441,22.55192733,206.1,206.02,22.55192733]
[1731465761645,22.55192733,206.12,206.04,22.55192733]
[1731465761948,22.55192733,206.09,206.02,15.773]
[1731465763068,27.40422733,206.09,206.02,15.773]
[1731465763766,22.55192733,206.07,205.99,22.55192733]
[1731465764075,22.55192733,206.03,205.96,15.6468]
[1731465764575,22.55192733,205.98,205.91,22.55192733]
[1731465765143,22.55192733,206.0,205.91,22.55192733]
[1731465765349,22.55192733,206.0,205.93,22.55192733]
[1731465766156,22.55192733,206.02,205.93,22.55192733]
[1731465766354,22.55192733,206.0,205.93,22.55192733]
[1731465766858,22.55192733,206.06,205.97,22.55192733]
[1731465767262,22.55192733,206.04,205.97,22.55192733]
[1731465767555,22.55192733,206.02,205.95,22.55192733]
[1731465768071,4.8529,206.07,205.9,334.2469]
[1731465768072,22.55192733,205.98,205.91,22.55192733]
[1731465768277,22.55192733,206.0,205.91,22.55192733]
[1731465768863,22.55192733,206.0,205.93,22.55192733]
[1731465769049,22.55192733,206.02,205.95,22.55192733]
[1731465769373,0.1,206.15,205.92,0.2]
[1731465769667,22.55192733,206.07,205.99,22.55192733]
[1731465770570,22.55192733,206.05,205.97,22.55192733]
[1731465771173,22.55192733,206.06,205.99,22.55192733]
[1731465772574,22.55192733,206.06,205.97,22.55192733]
[1731465773277,27.40482733,206.06,205.97,22.55192733]
[1731465773581,22.55192733,206.02,205.9,19.41187]
[1731465773751,6.0654,206.04,205.9,41.96379733]
[1731465773752,22.55192733,205.98,205.9,41.96379733]
[1731465773957,22.55192733,206.02,205.94,22.55192733]
[1731465774373,22.55192733,206.0,205.92,22.55192733]
[1731465775274,22.55192733,205.99,205.92,22.55192733]
[1731465775671,22.55192733,205.95,205.88,22.55192733]
[1731465775853,22.55192733,205.95,205.86,22.55192733]
[1731465776880,22.55192733,205.93,205.85,15.081]
[1731465777069,4.8557,205.95,205.85,15.081]
[1731465777070,22.55192733,205.94,205.87,22.55192733]
[1731465777266,22.55192733,205.99,205.85,15.081]
[1731465777461,23.776884,205.98,205.91,22.55192733]
[1731465777779,46.32881133,205.98,205.91,22.55192733]
[1731465777982,4.8541,206.01,205.92,22.55192733]
[1731465777983,22.55192733,206.0,205.92,22.55192733]
[1731465778384,22.55192733,205.98,205.9,22.55192733]
[1731465778691,4.8543,206.0,205.85,15.081]
[1731465778692,22.55192733,205.96,205.88,22.55192733]
[1731465779073,22.55192733,205.97,205.9,22.55192733]
[1731465779492,22.55192733,205.98,205.9,22.55192733]
[1731465779983,22.55192733,205.97,205.9,22.55192733]
[1731465780870,27.40682733,205.98,205.9,22.55192733]
[1731465781666,22.55192733,206.0,205.92,22.55192733]
[1731465781876,46.32881133,206.0,205.92,22.55192733]
[1731465782268,22.55192733,205.98,205.9,22.55192733]
[1731465782480,27.40682733,205.98,205.9,22.55192733]
[1731465782681,22.55192733,205.98,205.9,22.55192733]
[1731465782880,22.55192733,205.98,205.92,22.55192733]
[1731465783081,22.55192733,206.03,205.89,0.12549]
[1731465783290,22.55192733,206.09,206.01,22.55192733]
[1731465783593,22.55192733,206.05,205.97,38.06462733]
[1731465783769,22.55192733,206.03,205.97,38.06462733]
[1731465783974,22.55192733,206.05,205.97,38.06462733]
[1731465784687,27.40512733,206.05,205.97,38.06462733]
[1731465784869,22.55192733,206.05,205.97,38.06462733]
[1731465785071,46.32881133,206.06,205.98,22.55192733]
[1731465786170,22.55192733,206.1,206.02,22.55192733]
[1731465786380,27.40302733,206.14,205.98,20.12549]
[1731465786571,22.55192733,206.09,206.01,22.55192733]
[1731465786774,22.55192733,206.08,206.0,22.55192733]
[1731465786971,22.55192733,206.06,205.98,22.55192733]
[1731465787191,22.55192733,206.04,205.97,15.5127]
[1731465787393,22.55192733,206.03,205.97,15.5127]
[1731465787700,22.55192733,206.04,205.97,15.5127]
[1731465788498,22.55192733,206.02,205.97,15.5127]
[1731465789182,4.8532,206.05,205.97,15.5127]
[1731465789385,3.3279,206.21,206.05,0.1]
[1731465789686,22.55192733,206.1,206.05,0.1]
[1731465789892,22.55192733,206.07,206.03,0.1]
[1731465790693,22.55192733,206.06,206.01,0.1]
[1731465791282,22.55192733,206.07,206.01,0.1]
[1731465791590,22.55192733,206.05,205.98,0.1]
[1731465791794,22.55192733,206.01,205.97,15.6127]
[1731465792100,205.376884,206.16,206.02,0.1]
[1731465792274,22.55192733,206.06,206.02,0.1]
[1731465792480,22.55192733,206.04,205.97,15.6127]
[1731465792680,22.55192733,206.03,205.97,15.5127]
[1731465792899,22.55192733,206.03,205.97,15.6127]
[1731465793594,22.55192733,206.03,205.99,0.1]
[1731465793979,22.55192733,206.04,205.99,0.1]
[1731465794384,22.55192733,206.07,206.01,0.1]